bitfinex-derivatives/quotes_SOLF0:USTF0_20240918
["timestamp","ask_amount","ask_price","bid_price","bid_amount"]
[1726670306504,3.9048,128.04,128.0,15.01]
[1726670307801,3.9048,128.04,128.01,3.9055]
[1726670308001,3.9048,128.04,128.0,15.01]
[1726670309106,3.9053,128.03,127.95,1.4655]
[1726670309311,3.9053,128.03,127.99,15.01]
[1726670309514,3.9054,128.02,127.99,18.9161]
[1726670310015,3.9054,128.02,127.99,15.01]
[1726670310209,3.9057,128.01,127.99,15.01]
[1726670310408,3.9057,128.01,127.98,3.9065]
[1726670310805,3.9067,127.98,127.95,1.4655]
[1726670311011,3.9067,127.98,127.94,16.5054]
[1726670311308,3.9067,127.98,127.95,3.9074]
[1726670311611,337.0,128.03,127.96,15.01]
[1726670312013,340.89001797,128.03,127.97,3.9068]
[1726670312211,3.906,128.01,127.97,3.9068]
[1726670312609,340.89001797,128.03,127.97,3.9068]
[1726670313416,337.0,128.03,127.98,15.01]
[1726670313611,337.0,128.03,128.0,15.01]
[1726670313816,3.9052,128.03,128.0,15.01]
[1726670314320,1.4615,128.04,128.0,15.01]
[1726670314614,1.4615,128.04,128.0,18.916]
[1726670315011,3.9722376,128.05,128.0,18.916]
[1726670315211,34.85467315,128.06,128.0,15.01]
[1726670315525,15.01,128.1,128.01,15.01]
[1726670315712,49.85933876,128.1,128.01,15.01]
[1726670315910,3.9042,128.07,128.02,3.9052]
[1726670316116,31.88193876,128.08,128.02,3.9052]
[1726670316419,17.9774,128.1,128.02,3.9052]
[1726670316420,3.9042,128.06,128.02,3.9052]
[1726670316611,19.17231846,128.06,128.02,3.9052]
[1726670316929,3.9042,128.06,128.02,3.9052]
[1726670318331,31.87738008,128.09,128.01,15.01]
[1726670318522,15.26598936,128.08,128.01,15.01]
[1726670319025,3.9044,128.06,128.01,15.01]
[1726670319226,3.9044,128.06,128.02,3.9054]
[1726670322229,3.904,128.07,128.03,3.905]
[1726670322937,3.904,128.07,128.01,15.01]
[1726670323432,3.904,128.07,128.04,3.9046]
[1726670323633,3.9037,128.08,128.04,3.9046]
[1726670323833,15.26706506,128.09,128.04,3.9046]
[1726670325329,3.9038,128.08,128.04,3.9046]
[1726670325633,15.26706506,128.09,128.03,15.01]
[1726670325828,3.9037,128.08,128.03,15.01]
[1726670327229,3.9037,128.08,128.04,3.9046]
[1726670327532,3.9034,128.09,128.03,15.01]
[1726670327928,6.8705,128.1,128.04,15.01]
[1726670328132,3.9031,128.1,128.04,15.01]
[1726670328740,3.9031,128.1,128.06,3.9039]
[1726670329432,3.9033,128.09,128.06,3.9039]
[1726670330034,2.9316,128.15,128.08,15.01]
[1726670330035,3.94296875,128.14,128.08,15.01]
[1726670330235,21.01674631,128.15,128.08,15.01]
[1726670330422,3.9023,128.13,128.08,15.01]
[1726670330824,23.66051908,128.15,128.08,15.01]
[1726670331032,3.9021,128.13,128.09,3.9031]
[1726670331436,23.66051908,128.15,128.09,3.9031]
[1726670332839,3.9024,128.12,128.09,3.9031]
[1726670333032,8.39067187,128.15,128.09,3.9031]
[1726670335337,3.9023,128.13,128.09,3.9031]
[1726670336336,3.9023,128.13,128.1,3.9029]
[1726670336738,3.9023,128.13,128.08,15.01]
[1726670336941,3.9023,128.13,128.09,3.9031]
[1726670338133,3.9023,128.13,128.1,3.9029]
[1726670338537,8.39067187,128.15,128.08,15.01]
[1726670338538,3.9023,128.12,128.08,15.01]
[1726670338836,3.9023,128.12,128.09,3.9031]
[1726670339934,3.9023,128.12,128.1,9.6]
[1726670340441,3.9023,128.13,128.1,9.6]
[1726670340643,17.99067187,128.15,128.1,9.6]
[1726670341842,3.9022,128.13,128.1,13.5029]
[1726670342443,9.6,128.18,128.12,9.6]
[1726670342641,29.31374504,128.19,128.13,9.6]
[1726670342937,3.9015,128.15,128.13,9.6]
[1726670343437,14.0447,128.19,128.13,9.6]
[1726670343642,3.9013,128.16,128.15,9.6]
[1726670344241,4.4447,128.19,128.15,9.6]
[1726670345646,4.4447,128.19,128.16,9.6]
[1726670345843,3.9008,128.18,128.16,9.6]
[1726670346042,3.9008,128.18,128.15,3.9014]
[1726670346447,3.9008,128.17,128.15,3.9014]
[1726670346753,4.4447,128.19,128.14,3.9016]
[1726670347049,4.4447,128.19,128.13,15.0]
[1726670347346,1.5285,128.19,128.15,15.0]
[1726670347841,354.9509,128.24,128.15,15.0]
[1726670348040,16.6911801,128.23,128.15,15.0]
[1726670348241,1.4284,128.23,128.15,15.0]
[1726670348639,1.4284,128.23,128.16,3.901]
[1726670348844,1.4284,128.23,128.15,15.0]
[1726670349247,1.4284,128.23,128.17,18.9007]
[1726670349951,1.4284,128.23,128.18,3.9005]
[1726670350155,337.0,128.26,128.2,15.0]
[1726670350349,1.4045,128.28,128.23,15.0]
[1726670350748,3.8983,128.26,128.23,15.0]
[1726670350957,1.4045,128.28,128.21,15.0]
[1726670351153,1.4045,128.28,128.19,19.4194]
[1726670351550,15.0,128.27,128.19,1.4743]
[1726670351750,1.497,128.26,128.18,18.9004]
[1726670351959,3.8995,128.22,128.18,18.9004]
[1726670352361,3.88333983,128.25,128.18,18.9004]
[1726670352657,3.8991,128.23,128.18,18.9004]
[1726670353652,3.8994,128.22,128.18,18.9004]
[1726670353853,2.9316,128.26,128.19,18.9002]
[1726670354259,1.497,128.26,128.21,15.0]
[1726670354557,338.4045,128.28,128.23,15.0]
[1726670354761,1.4045,128.28,128.23,15.0]
[1726670355061,1.4045,128.28,128.21,15.0]
[1726670355361,1.4045,128.28,128.19,4.4921]
[1726670355362,16.4045,128.28,128.19,19.4921]
[1726670355747,3.8989,128.24,128.21,15.0]
[1726670356658,16.4045,128.28,128.2,15.0]
[1726670356854,1.4045,128.28,128.18,18.9003]
[1726670357159,3.8996,128.22,128.18,15.0]
[1726670357456,16.4045,128.28,128.2,15.0]
[1726670358463,3.8993,128.23,128.2,15.0]
[1726670361562,3.8993,128.23,128.2,18.8999]
[1726670361762,1.4045,128.28,128.21,15.0]
[1726670362057,1.4045,128.28,128.23,15.0]
[1726670362258,3.8983,128.26,128.23,15.0]
[1726670362664,1.4045,128.28,128.23,15.0]
[1726670362665,3.8985,128.25,128.23,15.0]
[1726670362857,1.4045,128.28,128.23,15.0]
[1726670363062,1.4045,128.28,128.22,15.0]
[1726670363265,3.8986,128.25,128.22,15.0]
[1726670363459,16.5446,128.3,128.23,15.0]
[1726670363759,3.8981,128.27,128.23,15.0]
[1726670363960,1.5446,128.3,128.23,18.8988]
[1726670364757,1.5446,128.3,128.24,3.8986]
[1726670364960,3.898,128.27,128.24,3.8986]
[1726670365865,3.8981,128.26,128.24,3.8986]
[1726670366059,1.5446,128.3,128.24,3.8986]
[1726670366255,3.898,128.27,128.24,3.8986]
[1726670367058,1.5446,128.3,128.26,15.0]
[1726670367261,1.4789,128.31,128.28,15.0]
[1726670367459,3.9341415,128.33,128.28,15.0]
[1726670367675,3.897,128.3,128.28,15.0]
[1726670367966,3.897,128.3,128.29,9.59]
[1726670368167,9.59,128.31,128.21,4.3837]
[1726670368362,1.5057,128.32,128.27,9.59]
[1726670368561,11.0957,128.32,128.28,9.59]
[1726670368867,3.8972,128.29,128.28,9.59]
[1726670369664,3.8972,128.29,128.25,3.8982]
[1726670369862,9.59,128.31,128.27,9.59]
[1726670370162,2.9459,128.32,128.21,4.3837]
[1726670370368,9.59,128.3,128.25,9.59]
[1726670370767,9.59,128.31,128.26,9.59]
[1726670372862,9.59,128.3,128.26,9.59]
[1726670373175,3.8978,128.27,128.26,9.59]
[1726670374558,3.8976,128.28,128.26,9.59]
[1726670374765,3.8976,128.28,128.27,9.59]
[1726670375360,12.5359,128.32,128.27,9.59]
[1726670375564,3.8973,128.29,128.27,9.59]
[1726670376067,3.8975,128.28,128.27,9.59]
[1726670376568,1.5057,128.32,128.27,9.59]
[1726670376870,3.897,128.3,128.29,9.59]
[1726670377471,3.8972,128.29,128.28,9.59]
[1726670377977,11.0957,128.32,128.28,9.59]
[1726670379975,3.8972,128.29,128.28,9.59]
[1726670380378,9.59,128.3,128.26,9.59]
[1726670380575,3.8977,128.28,128.26,9.59]
[1726670381071,9.59,128.3,128.26,9.59]
[1726670381466,9.59,128.31,128.26,9.59]
[1726670381672,3.8978,128.28,128.26,9.59]
[1726670381874,9.59,128.31,128.26,9.59]
[1726670383372,3.0111,128.32,128.21,4.3837]
[1726670383569,9.59,128.3,128.25,9.59]
[1726670383969,3.8983,128.26,128.25,9.59]
[1726670388480,3.8979,128.27,128.25,9.59]
[1726670388672,3.8979,128.27,128.26,9.59]
[1726670391278,3.8982,128.26,128.23,3.8988]
[1726670391583,3.8982,128.26,128.25,9.59]
[1726670391785,3.8976,128.28,128.25,9.59]
[1726670392084,340.0111,128.32,128.27,9.59]
[1726670392276,3.8971,128.3,128.29,9.59]
[1726670394382,3.82967933,128.34,128.29,9.59]
[1726670394383,3.8967,128.31,128.29,9.59]
[1726670394584,3.8967,128.31,128.3,9.59]
[1726670396775,3.8969,128.3,128.27,3.8977]
[1726670396976,3.8969,128.3,128.29,9.59]
[1726670401385,3.8976,128.28,128.23,3.85491419]
[1726670401582,9.59,128.33,128.27,9.59]
[1726670401887,9.59,128.33,128.29,9.59]
[1726670402079,9.59,128.32,128.28,9.59]
[1726670402477,3.8978,128.27,128.24,3.89898595]
[1726670402676,9.59,128.3,128.25,9.59]
[1726670404090,3.898,128.27,128.24,7.78949563]
[1726670404587,3.898,128.27,128.24,3.8987]
[1726670404784,3.8982,128.26,128.23,3.8988]
[1726670405989,3.8982,128.26,128.25,9.59]
[1726670407795,3.8979,128.27,128.25,9.59]
[1726670407989,3.8979,128.27,128.26,9.59]
[1726670409993,11.1146,128.3,128.24,9.59]
[1726670410598,11.1146,128.3,128.21,4.3837]
[1726670410599,3.8978,128.27,128.26,9.59]
[1726670412089,3.8976,128.28,128.26,9.59]
[1726670412287,3.8976,128.28,128.27,9.59]
[1726670412997,1.4157,128.32,128.27,9.59]
[1726670413184,337.0,128.33,128.31,9.59]
[1726670413491,340.8963,128.33,128.32,9.59]
[1726670413689,3.8963,128.33,128.32,9.59]
[1726670414293,3.8958,128.34,128.32,9.59]
[1726670414592,3.8958,128.34,128.33,9.59]
[1726670415808,3.8955,128.35,128.33,9.59]
[1726670415992,3.8955,128.35,128.34,9.59]
[1726670417897,1.4292,128.38,128.34,9.59]
[1726670418090,1.4696,128.4,128.37,9.59]
[1726670418294,33.34240834,128.4,128.39,9.59]
[1726670418496,31.87280834,128.4,128.39,9.59]
[1726670418697,15.26662967,128.4,128.39,9.59]
[1726670419398,1.4256,128.46,128.39,9.59]
[1726670419704,3.8923,128.45,128.44,9.59]
[1726670420001,35.77350255,128.45,128.42,14.95]
[1726670420198,19.16307656,128.44,128.42,14.95]
[1726670420507,3.8927,128.44,128.42,14.95]
[1726670420794,3.8929,128.43,128.42,14.95]
[1726670420999,1.4256,128.46,128.4,14.95]
[1726670421194,1.4256,128.46,128.39,14.95]
[1726670421505,33.30173903,128.46,128.39,14.95]
[1726670421699,33.30333903,128.45,128.39,14.95]
[1726670421892,3.8938,128.41,128.39,14.95]
[1726670422398,16.70127724,128.44,128.4,14.95]
[1726670422694,1.4331,128.44,128.4,14.95]
[1726670423103,3.8935,128.41,128.4,14.95]
[1726670423293,1.4331,128.44,128.39,14.95]
[1726670423895,3.8941,128.4,128.39,14.95]
[1726670424197,16.3831,128.44,128.35,14.95]
[1726670424397,16.3831,128.44,128.34,14.95]
[1726670424398,14.95,128.42,128.34,14.95]
[1726670424695,1.5363,128.41,128.34,14.95]
[1726670425098,3.8954,128.35,128.34,14.95]
[1726670431309,1.5347,128.4,128.34,14.95]
[1726670431603,1.5363,128.41,128.38,14.95]
[1726670432108,1.5363,128.41,128.34,14.95]
[1726670433010,3.8955,128.35,128.34,14.95]
[1726670433207,3.85224171,128.4,128.34,14.95]
[1726670433413,3.85224171,128.4,128.36,14.95]
[1726670433805,3.8949,128.37,128.36,14.95]
[1726670435314,3.8954,128.35,128.34,14.95]
[1726670436105,3.8961,128.33,128.32,14.95]
[1726670440013,3.8966,128.31,128.3,14.95]
[1726670440213,338.5309,128.37,128.25,2.9386]
[1726670440511,338.5309,128.37,128.28,14.95]
[1726670440512,351.95,128.36,128.28,14.95]
[1726670440714,353.4856,128.36,128.28,14.95]
[1726670441211,338.5356,128.36,128.28,14.95]
[1726670441514,338.5356,128.36,128.31,14.95]
[1726670441715,3.8959,128.34,128.31,14.95]
[1726670442013,1.5356,128.36,128.31,14.95]
[1726670442210,1.5356,128.36,128.3,3.8967]
[1726670442411,338.4364,128.38,128.34,14.95]
[1726670442412,1.4364,128.38,128.34,14.95]
[1726670442613,1.4364,128.38,128.36,14.95]
[1726670443413,3.8947,128.37,128.36,14.95]
[1726670445118,1.4364,128.38,128.36,14.95]
[1726670445119,3.8946,128.38,128.36,14.95]
[1726670445322,3.8946,128.38,128.37,14.95]
[1726670446207,3.895,128.37,128.36,14.95]
[1726670446714,5.35457821,128.4,128.34,3.8955]
[1726670446715,3.8955,128.35,128.34,14.95]
[1726670448511,3.8953,128.36,128.34,14.95]
[1726670449524,5.35457821,128.4,128.28,1.546]
[1726670449525,20.30457821,128.4,128.32,14.95]
[1726670450013,3.8958,128.34,128.32,14.95]
[1726670451124,20.30457821,128.4,128.32,14.95]
[1726670451628,15.23841619,128.39,128.32,14.95]
[1726670451824,3.896,128.33,128.32,14.95]
[1726670453623,3.8958,128.34,128.32,14.95]
[1726670454827,3.896,128.33,128.32,14.95]
[1726670455528,3.896,128.33,128.31,14.95]
[1726670455724,338.5275,128.38,128.31,14.95]
[1726670456230,3.8961,128.33,128.31,14.95]
[1726670458732,3.8961,128.33,128.31,18.8465]
[1726670458928,3.8958,128.34,128.31,18.8465]
[1726670459519,338.5275,128.38,128.33,14.95]
[1726670460326,3.8957,128.34,128.33,14.95]
[1726670460723,1.5275,128.38,128.33,14.95]
[1726670461321,1.5275,128.38,128.33,18.8459]
[1726670461525,1.5275,128.38,128.33,14.95]
[1726670462228,3.8955,128.35,128.33,14.95]
[1726670462738,15.25018691,128.39,128.34,14.95]
[1726670462932,1.5177,128.42,128.38,14.95]
[1726670463139,34.64874511,128.45,128.4,14.95]
[1726670463346,15.25280338,128.44,128.4,14.95]
[1726670463639,15.25280338,128.44,128.34,1.4668]
[1726670463640,2.8045,128.45,128.42,14.95]
[1726670463829,3.8928,128.44,128.42,14.95]
[1726670465825,3.8924,128.45,128.42,14.95]
[1726670466028,1.5412,128.48,128.43,14.95]
[1726670466633,3.8919,128.47,128.43,18.8428]
[1726670466829,5.42199614,128.48,128.43,18.8428]
[1726670467530,3.8921,128.46,128.43,14.95]
[1726670468332,3.8924,128.45,128.43,14.95]
[1726670469236,3.8921,128.46,128.43,14.95]
[1726670470039,3.8924,128.45,128.43,14.95]
[1726670470434,5.42199614,128.48,128.43,14.95]
[1726670470739,3.8928,128.44,128.42,14.95]
[1726670471636,3.8925,128.45,128.42,14.95]
[1726670471845,5.42199614,128.48,128.42,14.95]
[1726670472035,5.42199614,128.48,128.43,14.95]
[1726670472833,3.8922,128.46,128.43,14.95]
[1726670474640,3.8922,128.46,128.43,18.8429]
[1726670475042,3.8922,128.46,128.4,17.7847]
[1726670475043,3.8918,128.47,128.45,14.95]
[1726670479141,1.4088,128.5,128.45,14.95]
[1726670479341,338.4033,128.53,128.47,14.95]
[1726670479546,3.81427235,128.52,128.47,14.95]
[1726670479939,3.8914,128.48,128.45,3.8921]
[1726670480238,3.8914,128.48,128.47,9.58]
[1726670481242,3.8912,128.49,128.47,9.58]
[1726670481443,3.8912,128.49,128.48,9.58]
[1726670482347,3.8909,128.5,128.48,9.58]
[1726670482550,3.8909,128.5,128.47,3.8915]
[1726670482551,3.8909,128.5,128.49,9.58]
[1726670483641,9.58,128.52,128.4,2.8347]
[1726670483841,346.58,128.52,128.47,9.58]
[1726670484340,337.0,128.52,128.49,9.58]
[1726670485038,3.8908,128.5,128.49,9.58]
[1726670485846,3.8913,128.49,128.48,9.58]
[1726670487341,3.8905,128.51,128.48,9.58]
[1726670487546,3.8905,128.51,128.5,9.58]
[1726670488142,344.7752,128.61,128.5,9.58]
[1726670488344,344.7752,128.61,128.56,9.58]
[1726670488345,4.3617,128.59,128.56,9.58]
[1726670488538,2.8497,128.59,128.56,9.58]
[1726670488742,3.8887,128.57,128.56,9.58]
[1726670489949,3.8891,128.56,128.53,18.8398]
[1726670490540,2.8497,128.59,128.53,14.95]
[1726670491051,2.8497,128.59,128.52,14.95]
[1726670491449,17.7997,128.59,128.52,14.95]
[1726670491648,3.8898,128.54,128.52,14.95]
[1726670493048,3.8899,128.53,128.52,14.95]
[1726670493654,3.8898,128.54,128.52,14.95]
[1726670494049,337.0,128.58,128.53,15.27029367]
[1726670494254,3.8894,128.55,128.53,15.27029367]
[1726670497457,3.8896,128.54,128.53,15.27029367]
[1726670497753,337.0,128.58,128.53,15.27029367]
[1726670497961,3.8896,128.54,128.53,15.27029367]
[1726670498350,14.95,128.57,128.52,0.57030837]
[1726670498552,3.8911,128.49,128.48,0.60088893]
[1726670500955,3.8909,128.5,128.48,0.60088893]
[1726670502461,3.8909,128.5,128.49,14.95]
[1726670504555,3.8907,128.51,128.49,14.95]
[1726670505557,3.8907,128.51,128.49,18.841]
[1726670506361,3.8907,128.51,128.5,14.95]
[1726670507155,1.4424,128.53,128.48,15.55088893]
[1726670508660,3.8911,128.49,128.48,15.55088893]
[1726670510059,3.8911,128.49,128.48,15.96873671]
[1726670511972,1.4424,128.53,128.48,15.96873671]
[1726670511973,1.4424,128.53,128.48,19.86003671]
[1726670513768,3.8908,128.5,128.48,19.86003671]
[1726670514076,3.8908,128.5,128.49,9.58]
[1726670514255,3.8903,128.52,128.49,13.4708]
[1726670514460,3.8903,128.52,128.51,9.58]
[1726670514756,3.8898,128.54,128.51,13.4703]
[1726670514960,3.8898,128.54,128.53,9.58]
[1726670515160,337.0,128.55,128.53,9.58]
[1726670515367,3.8892,128.56,128.54,9.58]
[1726670515557,3.8892,128.56,128.55,9.58]
[1726670515961,3.8892,128.56,128.55,14.95]
[1726670518568,3.8888,128.57,128.55,14.95]
[1726670520272,3.8886,128.58,128.56,14.95]
[1726670520474,4.5654,128.62,128.57,14.95]
[1726670520979,8.47197843,128.62,128.57,14.95]
[1726670521277,8.47197843,128.62,128.54,1.4077]
[1726670521278,3.8876,128.61,128.6,14.95]
[1726670522171,3.8874,128.62,128.6,14.95]
[1726670522365,4.3913,128.66,128.6,14.95]
[1726670523667,3.8875,128.61,128.6,14.95]
[1726670526673,3.8881,128.59,128.58,14.95]
[1726670526970,3.87734454,128.63,128.54,16.3577]
[1726670527171,3.8889,128.57,128.54,20.2472]
[1726670527977,3.98326848,128.63,128.56,14.95]
[1726670528180,14.95,128.65,128.56,14.95]
[1726670528477,3.8882,128.59,128.57,3.8887]
[1726670529172,3.8879,128.6,128.58,18.8384]
[1726670530279,3.8879,128.6,128.58,14.95]
[1726670531378,3.8876,128.61,128.58,18.8383]
[1726670532475,3.8878,128.6,128.58,14.95]
[1726670532975,3.8881,128.59,128.58,14.95]
[1726670533573,3.8879,128.6,128.58,14.95]
[1726670534377,3.8879,128.6,128.58,18.8384]
[1726670535379,4.3913,128.66,128.6,3.8876]
[1726670535380,3.8871,128.63,128.6,3.8876]
[1726670535566,4.3913,128.66,128.6,3.8876]
[1726670535978,3.887,128.63,128.61,14.95]
[1726670536177,2.9065,128.66,128.61,14.95]
[1726670536483,3.8871,128.63,128.61,14.95]
[1726670537682,3.8872,128.62,128.59,18.8379]
[1726670541885,3.8876,128.61,128.59,14.95]
[1726670542270,3.8876,128.61,128.59,18.838]
[1726670542476,3.8872,128.62,128.59,18.838]
[1726670546081,3.8876,128.61,128.59,14.95]
[1726670546588,3.94521827,128.63,128.56,3.889]
[1726670546777,14.95,128.65,128.57,14.95]
[1726670547183,3.8879,128.6,128.57,18.8385]
[1726670547580,14.95,128.65,128.57,14.95]
[1726670547885,14.95,128.65,128.48,1.01873671]
[1726670547886,2.8313,128.59,128.48,1.01873671]
[1726670548082,9.58,128.54,128.49,9.58]
[1726670548279,9.58,128.56,128.49,9.58]
[1726670549776,3.8902,128.53,128.5,9.58]
[1726670549983,14.96,128.57,128.48,19.87013671]
[1726670551689,3.8901,128.53,128.49,3.8911]
[1726670552392,1.5114,128.58,128.5,14.96]
[1726670552584,1.5114,128.58,128.52,14.96]
[1726670553491,3.8894,128.55,128.52,14.96]
[1726670554899,3.8899,128.53,128.5,14.96]
[1726670555384,3.8902,128.52,128.5,14.96]
[1726670555589,14.96,128.57,128.49,14.96]
[1726670555988,3.8907,128.51,128.49,14.96]
[1726670556585,3.8908,128.5,128.49,14.96]
[1726670556794,14.96,128.57,128.49,14.96]
[1726670557794,3.8907,128.51,128.49,14.96]
[1726670559299,3.8908,128.5,128.49,14.96]
[1726670559801,14.96,128.57,128.49,14.96]
[1726670560307,3.8907,128.51,128.49,14.96]
[1726670561396,14.96,128.57,128.49,14.96]
[1726670561702,1.5114,128.58,128.49,14.96]
[1726670561896,16.81154185,128.58,128.49,18.8509]
[1726670562603,3.8902,128.52,128.5,14.96]
[1726670562898,16.81154185,128.58,128.5,18.8508]
[1726670563094,3.8901,128.53,128.5,18.8508]
[1726670563302,3.8901,128.53,128.5,14.96]
[1726670564202,3.8901,128.53,128.5,18.8507]
[1726670564699,16.81154185,128.58,128.5,14.96]
[1726670564902,3.8903,128.52,128.5,14.96]
[1726670565998,3.8901,128.53,128.5,18.8508]
[1726670566604,3.8895,128.55,128.52,14.96]
[1726670566798,3.8895,128.55,128.53,14.96]
[1726670568005,1.4054,128.59,128.53,14.96]
[1726670568305,14.96,128.64,128.56,14.96]
[1726670568705,46.88886734,128.64,128.56,14.96]
[1726670568902,15.29500545,128.63,128.56,14.96]
[1726670569201,30.25500545,128.64,128.56,14.96]
[1726670569398,3.8885,128.58,128.57,14.96]
[1726670570105,3.8887,128.57,128.54,3.8895]
[1726670570402,14.96,128.62,128.53,14.96]
[1726670570708,3.8888,128.57,128.54,3.8896]
[1726670572503,3.94372226,128.59,128.52,1.4392]
[1726670572698,14.96,128.6,128.52,1.4392]
[1726670572900,2.8293,128.59,128.52,1.4392]
[1726670573103,3.8895,128.55,128.52,1.4392]
[1726670573502,3.8895,128.55,128.52,5.3294]
[1726670573698,3.8895,128.55,128.52,20.2894]
[1726670574205,3.8891,128.56,128.52,20.2894]
[1726670574907,3.8891,128.56,128.53,3.8899]
[1726670575604,3.8891,128.56,128.52,20.2892]
[1726670576209,3.8893,128.55,128.52,20.2892]
[1726670577800,3.8896,128.54,128.52,16.3992]
[1726670578003,3.8896,128.54,128.51,18.8504]
[1726670578202,8.08401884,128.59,128.51,14.96]
[1726670578803,3.8898,128.54,128.51,18.8503]
[1726670579002,23.04401884,128.59,128.51,14.96]
[1726670579805,3.8901,128.53,128.51,14.96]
[1726670580209,3.8901,128.53,128.51,18.8505]
[1726670580904,3.8901,128.53,128.51,14.96]
[1726670581802,3.8904,128.52,128.49,18.851]
[1726670582017,14.96,128.57,128.48,20.43823671]
[1726670582217,14.96,128.57,128.48,18.98763671]
[1726670582407,30.25953452,128.57,128.48,22.87873671]
[1726670582608,14.96,128.57,128.48,22.87873671]
[1726670582807,3.89,128.53,128.48,18.98763671]
[1726670583122,14.96,128.57,128.48,18.98763671]
[1726670583505,14.96,128.55,128.48,17.50003671]
[1726670583704,3.8911,128.49,128.48,1.01873671]
[1726670583920,17.8525,128.54,128.48,1.01873671]
[1726670584114,2.8925,128.54,128.48,4.91003671]
[1726670584308,3.8903,128.52,128.48,15.97873671]
[1726670584709,3.8903,128.52,128.49,3.8909]
[1726670584913,3.8903,128.52,128.48,15.97873671]
[1726670585715,3.8903,128.52,128.49,14.96]
[1726670586222,3.8901,128.53,128.49,14.96]
[1726670586726,2.992,128.58,128.51,14.96]
[1726670587027,18.29002798,128.58,128.52,3.89]
[1726670587323,3.8892,128.56,128.52,3.89]
[1726670587714,1.5083,128.58,128.54,3.8896]
[1726670587923,3.889,128.56,128.54,3.8896]
[1726670589017,3.8888,128.57,128.53,14.96]
[1726670589326,1.426,128.59,128.55,14.96]
[1726670589522,3.8886,128.58,128.55,14.96]
[1726670590125,3.8888,128.57,128.55,14.96]
[1726670591325,3.889,128.56,128.55,14.96]
[1726670591527,3.889,128.56,128.53,18.8498]
[1726670592425,3.96660439,128.59,128.53,14.96]
[1726670592730,2.9251,128.62,128.54,14.96]
[1726670592731,17.8851,128.62,128.54,14.96]
[1726670592928,3.8889,128.57,128.54,18.8496]
[1726670593127,3.8889,128.57,128.54,14.96]
[1726670593525,3.8889,128.57,128.54,18.8495]
[1726670594929,3.8889,128.57,128.54,3.8895]
[1726670595125,3.889,128.56,128.53,18.8497]
[1726670595519,14.96,128.6,128.53,14.96]
[1726670596031,3.91319579,128.59,128.53,14.96]
[1726670596424,3.8892,128.56,128.53,18.8498]
[1726670597441,3.8893,128.55,128.53,18.8498]
[1726670597822,3.8893,128.55,128.53,14.96]
[1726670598626,3.8891,128.56,128.53,18.8499]
[1726670599825,3.91319579,128.59,128.53,14.96]
[1726670600330,3.8892,128.56,128.53,18.8499]
[1726670600532,3.93810821,128.59,128.53,14.96]
[1726670600830,14.96,128.61,128.53,14.96]